[Event "November 21 Late 2023"]
[Site "https://www.chess.com"]
[Date "2023.11.21"]
[Round "6"]
[White "mind1mover"]
[Black "Martinez Alcantara, Jose Eduardo"]
[Result "0-1"]
[Board "7"]
[TimeControl "180+1"]
[BlackFideId "3805662"]
[WhiteElo "2879"]
[BlackElo "2703"]
[BlackTeam "PER"]
[WhiteClock "0:00:00"]
[BlackClock "0:00:06"]

1. Nf3 {[%clk 0:03:00]}  c5 {[%clk 0:03:00]} 2. b3 {[%clk 0:02:59]}  Nf6 {[%clk 0:02:55]} 3. Bb2 {[%clk 0:02:55]}  g6 {[%clk 0:02:55]} 4. g3 {[%clk 0:02:52]}  Bg7 {[%clk 0:02:55]} 5. Bg2 {[%clk 0:02:52]}  d5 {[%clk 0:02:56]} 6. O-O {[%clk 0:02:53]}  d4 {[%clk 0:02:51]} 7. c3 {[%clk 0:02:42]}  Nc6 {[%clk 0:02:49]} 8. cxd4 {[%clk 0:02:36]}  cxd4 {[%clk 0:02:50]} 9. e3 {[%clk 0:02:36]}  dxe3 {[%clk 0:02:04]} 10. dxe3 {[%clk 0:02:37]}  O-O {[%clk 0:02:05]} 11. Na3 {[%clk 0:02:36]}  Qa5 {[%clk 0:01:54]} 12. Nc4 {[%clk 0:01:57]}  Qh5 {[%clk 0:01:53]} 13. Nd4 {[%clk 0:01:23]}  Bg4 {[%clk 0:01:40]} 14. f3 {[%clk 0:01:21]}  Bd7 {[%clk 0:01:37]} 15. Qe2 {[%clk 0:01:08]}  Nxd4 {[%clk 0:01:31]} 16. Bxd4 {[%clk 0:01:09]}  Bb5 {[%clk 0:01:32]} 17. a4 {[%clk 0:01:04]}  Ba6 {[%clk 0:01:27]} 18. Rac1 {[%clk 0:00:57]}  Rac8 {[%clk 0:01:20]} 19. Qb2 {[%clk 0:00:50]}  b6 {[%clk 0:01:12]} 20. Rfe1 {[%clk 0:00:35]}  Bxc4 {[%clk 0:01:11]} 21. bxc4 {[%clk 0:00:33]}  Ne8 {[%clk 0:01:12]} 22. Qb5 {[%clk 0:00:18]}  Qh6 {[%clk 0:00:44]} 23. c5 {[%clk 0:00:15]}  Bxd4 {[%clk 0:00:37]} 24. exd4 {[%clk 0:00:15]}  e6 {[%clk 0:00:37]} 25. f4 {[%clk 0:00:12]}  Qg7 {[%clk 0:00:36]} 26. Red1 {[%clk 0:00:11]}  Rb8 {[%clk 0:00:33]} 27. c6 {[%clk 0:00:05]}  Nc7 {[%clk 0:00:32]} 28. Qe5 {[%clk 0:00:06]}  Rbc8 {[%clk 0:00:32]} 29. Qxg7+ {[%clk 0:00:05]}  Kxg7 {[%clk 0:00:32]} 30. d5 {[%clk 0:00:06]}  exd5 {[%clk 0:00:32]} 31. Bxd5 {[%clk 0:00:06]}  Na6 {[%clk 0:00:26]} 32. Bf3 {[%clk 0:00:04]}  Nc5 {[%clk 0:00:25]} 33. a5 {[%clk 0:00:04]}  Rc7 {[%clk 0:00:20]} 34. axb6 {[%clk 0:00:04]}  axb6 {[%clk 0:00:21]} 35. Rb1 {[%clk 0:00:05]}  Rb8 {[%clk 0:00:21]} 36. h4 {[%clk 0:00:04]}  h5 {[%clk 0:00:21]} 37. Rb5 {[%clk 0:00:04]}  Kf8 {[%clk 0:00:18]} 38. Rdb1 {[%clk 0:00:04]}  Na4 {[%clk 0:00:14]} 39. R1b4 {[%clk 0:00:03]}  Ra7 {[%clk 0:00:10]} 40. c7 {[%clk 0:00:03]}  Rc8 {[%clk 0:00:11]} 41. Rc4 {[%clk 0:00:02]}  Rcxc7 {[%clk 0:00:10]} 42. Rxc7 {[%clk 0:00:02]}  Rxc7 {[%clk 0:00:10]} 43. Rb4 {[%clk 0:00:02]}  Ra7 {[%clk 0:00:11]} 44. Rb5 {[%clk 0:00:01]}  Ke7 {[%clk 0:00:10]} 45. Rb4 {[%clk 0:00:02]}  Kd6 {[%clk 0:00:10]} 46. Bd1 {[%clk 0:00:02]}  Nc3 {[%clk 0:00:09]} 47. Bf3 {[%clk 0:00:01]}  Kc5 {[%clk 0:00:09]} 48. Rb3 {[%clk 0:00:01]}  Nb5 {[%clk 0:00:08]} 49. Be2 {[%clk 0:00:01]}  Nd4 {[%clk 0:00:08]} 50. Rc3+ {[%clk 0:00:01]}  Kd5 {[%clk 0:00:09]} 51. Rd3 {[%clk 0:00:02]}  Ra1+ {[%clk 0:00:06]} 52. Kf2 {[%clk 0:00:00]}  Ra2 {[%clk 0:00:06]} 0-1

[Event "November 21 Late 2023"]
[Site "https://www.chess.com"]
[Date "2023.11.21"]
[Round "6"]
[White "Nihal Sarin"]
[Black "Bazeev, German"]
[Result "1-0"]
[Board "8"]
[TimeControl "180+1"]
[WhiteFideId "25092340"]
[BlackFideId "24119350"]
[WhiteElo "2689"]
[BlackElo "2418"]
[WhiteTeam "IND"]
[BlackTeam "RUS"]
[WhiteClock "0:02:13"]
[BlackClock "0:00:29"]

1. Nf3 {[%clk 0:03:00]}  Nf6 {[%clk 0:02:59]} 2. b3 {[%clk 0:03:01]}  d5 {[%clk 0:03:00]} 3. Bb2 {[%clk 0:03:02]}  c6 {[%clk 0:03:00]} 4. e3 {[%clk 0:03:03]}  Bg4 {[%clk 0:03:01]} 5. c4 {[%clk 0:03:04]}  Nbd7 {[%clk 0:02:59]} 6. h3 {[%clk 0:03:04]}  Bxf3 {[%clk 0:02:54]} 7. Qxf3 {[%clk 0:03:04]}  e6 {[%clk 0:02:54]} 8. Nc3 {[%clk 0:03:05]}  a6 {[%clk 0:02:50]} 9. d4 {[%clk 0:03:06]}  b5 {[%clk 0:02:48]} 10. cxd5 {[%clk 0:03:04]}  cxd5 {[%clk 0:02:48]} 11. Bd3 {[%clk 0:03:04]}  Rc8 {[%clk 0:02:42]} 12. O-O {[%clk 0:03:05]}  Be7 {[%clk 0:02:40]} 13. Rfc1 {[%clk 0:03:05]}  O-O {[%clk 0:02:39]} 14. Qd1 {[%clk 0:03:04]}  Qa5 {[%clk 0:02:35]} 15. Rc2 {[%clk 0:03:05]}  Ba3 {[%clk 0:02:29]} 16. Bxa3 {[%clk 0:03:04]}  Qxa3 {[%clk 0:02:30]} 17. Rac1 {[%clk 0:03:04]}  Qa5 {[%clk 0:02:02]} 18. Nxd5 {[%clk 0:03:03]}  Rxc2 {[%clk 0:01:46]} 19. Ne7+ {[%clk 0:03:03]}  Kh8 {[%clk 0:01:44]} 20. Qxc2 {[%clk 0:03:04]}  Qa3 {[%clk 0:01:37]} 21. Nc6 {[%clk 0:03:03]}  g6 {[%clk 0:01:36]} 22. Na7 {[%clk 0:03:02]}  Nd5 {[%clk 0:01:32]} 23. Qd2 {[%clk 0:02:57]}  Qb4 {[%clk 0:01:25]} 24. Qb2 {[%clk 0:02:42]}  Kg8 {[%clk 0:01:21]} 25. Nc6 {[%clk 0:02:40]}  Qd6 {[%clk 0:01:21]} 26. e4 {[%clk 0:02:39]}  Nf4 {[%clk 0:01:21]} 27. Bf1 {[%clk 0:02:39]}  Nb8 {[%clk 0:01:10]} 28. Ne5 {[%clk 0:02:32]}  Rd8 {[%clk 0:01:03]} 29. g3 {[%clk 0:02:30]}  Nh5 {[%clk 0:01:02]} 30. Ng4 {[%clk 0:02:31]}  Nd7 {[%clk 0:00:55]} 31. d5 {[%clk 0:02:30]}  e5 {[%clk 0:00:53]} 32. Rc6 {[%clk 0:02:30]}  Qb4 {[%clk 0:00:54]} 33. Nxe5 {[%clk 0:02:29]}  Ndf6 {[%clk 0:00:50]} 34. g4 {[%clk 0:02:28]}  Qxe4 {[%clk 0:00:38]} 35. gxh5 {[%clk 0:02:28]}  Nxd5 {[%clk 0:00:38]} 36. hxg6 {[%clk 0:02:13]}  hxg6 {[%clk 0:00:29]} 37. Ng4 {[%clk 0:02:13]} 1-0

[Event "November 21 Late 2023"]
[Site "https://www.chess.com"]
[Date "2023.11.21"]
[Round "6"]
[White "Beerdsen, Thomas"]
[Black "Andreikin, Dmitry"]
[Result "0-1"]
[Board "9"]
[TimeControl "180+1"]
[WhiteFideId "1030108"]
[BlackFideId "4158814"]
[WhiteElo "2550"]
[BlackElo "2741"]
[WhiteTeam "NED"]
[BlackTeam "FID"]
[WhiteClock "0:00:25"]
[BlackClock "0:00:31"]

1. e4 {[%clk 0:03:00]}  c5 {[%clk 0:03:00]} 2. Nf3 {[%clk 0:03:00]}  e6 {[%clk 0:02:59]} 3. d4 {[%clk 0:03:01]}  cxd4 {[%clk 0:03:00]} 4. Bg5 {[%clk 0:03:01]}  Qc7 {[%clk 0:02:57]} 5. Qxd4 {[%clk 0:03:01]}  Nc6 {[%clk 0:02:57]} 6. Qe3 {[%clk 0:03:00]}  Nge7 {[%clk 0:02:54]} 7. Bd3 {[%clk 0:02:59]}  Ng6 {[%clk 0:02:54]} 8. Qd2 {[%clk 0:02:48]}  Bc5 {[%clk 0:02:52]} 9. Nc3 {[%clk 0:02:47]}  d6 {[%clk 0:02:45]} 10. h4 {[%clk 0:02:44]}  Nge5 {[%clk 0:02:42]} 11. h5 {[%clk 0:02:44]}  h6 {[%clk 0:02:40]} 12. Be3 {[%clk 0:02:42]}  Bxe3 {[%clk 0:02:40]} 13. Qxe3 {[%clk 0:02:42]}  a6 {[%clk 0:02:40]} 14. O-O-O {[%clk 0:02:41]}  Bd7 {[%clk 0:02:36]} 15. Kb1 {[%clk 0:02:40]}  Rc8 {[%clk 0:02:36]} 16. g4 {[%clk 0:02:34]}  Nxg4 {[%clk 0:02:33]} 17. Qe2 {[%clk 0:02:33]}  Qb6 {[%clk 0:02:23]} 18. Rhg1 {[%clk 0:02:32]}  Nxf2 {[%clk 0:02:17]} 19. Rdf1 {[%clk 0:02:15]}  Nxd3 {[%clk 0:02:17]} 20. Qxd3 {[%clk 0:02:16]}  Na5 {[%clk 0:01:47]} 21. Rxg7 {[%clk 0:02:11]}  Nc4 {[%clk 0:01:45]} 22. b3 {[%clk 0:02:09]}  Na3+ {[%clk 0:01:38]} 23. Kb2 {[%clk 0:02:02]}  Bb5 {[%clk 0:01:38]} 24. Qd2 {[%clk 0:01:13]}  Bxf1 {[%clk 0:01:34]} 25. Kxa3 {[%clk 0:01:13]}  Qc5+ {[%clk 0:01:05]} 26. Kb2 {[%clk 0:01:13]}  Qxc3+ {[%clk 0:01:06]} 27. Qxc3 {[%clk 0:01:13]}  Rxc3 {[%clk 0:01:06]} 28. Kxc3 {[%clk 0:01:14]}  Be2 {[%clk 0:01:07]} 29. Rg3 {[%clk 0:00:56]}  Ke7 {[%clk 0:01:07]} 30. Kd2 {[%clk 0:00:52]}  Bxf3 {[%clk 0:01:06]} 31. Rxf3 {[%clk 0:00:53]}  Rg8 {[%clk 0:01:06]} 32. Rc3 {[%clk 0:00:53]}  Rg2+ {[%clk 0:00:54]} 33. Kd1 {[%clk 0:00:52]}  b5 {[%clk 0:00:43]} 34. Rc6 {[%clk 0:00:43]}  Rh2 {[%clk 0:00:39]} 35. Rxa6 {[%clk 0:00:42]}  Rxh5 {[%clk 0:00:40]} 36. a4 {[%clk 0:00:32]}  bxa4 {[%clk 0:00:37]} 37. bxa4 {[%clk 0:00:32]}  Re5 {[%clk 0:00:35]} 38. Ra8 {[%clk 0:00:26]}  Rxe4 {[%clk 0:00:35]} 39. a5 {[%clk 0:00:27]}  h5 {[%clk 0:00:32]} 40. a6 {[%clk 0:00:27]}  Ra4 {[%clk 0:00:31]} 41. Kd2 {[%clk 0:00:26]}  h4 {[%clk 0:00:31]} 42. Kc3 {[%clk 0:00:27]}  h3 {[%clk 0:00:31]} 43. Kb3 {[%clk 0:00:27]}  Ra1 {[%clk 0:00:30]} 44. Kb2 {[%clk 0:00:24]}  h2 {[%clk 0:00:31]} 45. Rh8 {[%clk 0:00:24]}  h1=Q {[%clk 0:00:30]} 46. Rxh1 {[%clk 0:00:25]}  Rxh1 {[%clk 0:00:30]} 47. a7 {[%clk 0:00:26]}  Rh8 {[%clk 0:00:30]} 48. a8=Q {[%clk 0:00:25]}  Rxa8 {[%clk 0:00:31]} 0-1

[Event "November 21 Late 2023"]
[Site "https://www.chess.com"]
[Date "2023.11.21"]
[Round "6"]
[White "Margvelashvili, Giorgi"]
[Black "Chigaev, Maksim"]
[Result "1/2-1/2"]
[Board "15"]
[TimeControl "180+1"]
[WhiteFideId "13602926"]
[BlackFideId "4108116"]
[WhiteElo "2549"]
[BlackElo "2561"]
[WhiteTeam "GEO"]
[BlackTeam "ESP"]
[WhiteClock "0:00:14"]
[BlackClock "0:00:09"]

1. Nf3 {[%clk 0:03:00]}  Nf6 {[%clk 0:02:59]} 2. c4 {[%clk 0:03:00]}  g6 {[%clk 0:03:00]} 3. b4 {[%clk 0:02:54]}  Bg7 {[%clk 0:02:56]} 4. Bb2 {[%clk 0:02:55]}  O-O {[%clk 0:02:55]} 5. e3 {[%clk 0:02:55]}  d6 {[%clk 0:02:55]} 6. d4 {[%clk 0:02:55]}  c5 {[%clk 0:02:51]} 7. a3 {[%clk 0:02:44]}  Bf5 {[%clk 0:02:39]} 8. Be2 {[%clk 0:02:40]}  Nc6 {[%clk 0:02:32]} 9. d5 {[%clk 0:02:18]}  Nb8 {[%clk 0:02:29]} 10. bxc5 {[%clk 0:02:14]}  Qa5+ {[%clk 0:02:19]} 11. Nbd2 {[%clk 0:02:10]}  Qxc5 {[%clk 0:02:18]} 12. O-O {[%clk 0:02:10]}  Na6 {[%clk 0:02:17]} 13. Nd4 {[%clk 0:02:05]}  Bd7 {[%clk 0:02:17]} 14. Rc1 {[%clk 0:01:46]}  Qb6 {[%clk 0:02:09]} 15. Nb5 {[%clk 0:01:29]}  Nc5 {[%clk 0:02:07]} 16. Bd4 {[%clk 0:01:26]}  a6 {[%clk 0:02:05]} 17. Nc3 {[%clk 0:01:26]}  Qc7 {[%clk 0:02:01]} 18. Rb1 {[%clk 0:01:24]}  Rab8 {[%clk 0:01:41]} 19. Rb2 {[%clk 0:01:19]}  Rfc8 {[%clk 0:01:35]} 20. Qa1 {[%clk 0:01:13]}  e5 {[%clk 0:01:17]} 21. dxe6 {[%clk 0:01:13]}  Nxe6 {[%clk 0:01:17]} 22. Bxf6 {[%clk 0:00:52]}  Bxf6 {[%clk 0:01:17]} 23. Nd5 {[%clk 0:00:52]}  Qd8 {[%clk 0:01:01]} 24. Nxf6+ {[%clk 0:00:51]}  Qxf6 {[%clk 0:01:01]} 25. Bf3 {[%clk 0:00:45]}  Nc5 {[%clk 0:00:53]} 26. Bd5 {[%clk 0:00:38]}  b5 {[%clk 0:00:50]} 27. h3 {[%clk 0:00:32]}  Na4 {[%clk 0:00:38]} 28. Rb3 {[%clk 0:00:21]}  Qxa1 {[%clk 0:00:36]} 29. Rxa1 {[%clk 0:00:22]}  Kg7 {[%clk 0:00:34]} 30. cxb5 {[%clk 0:00:18]}  axb5 {[%clk 0:00:24]} 31. Rb4 {[%clk 0:00:18]}  Rc2 {[%clk 0:00:21]} 32. Ne4 {[%clk 0:00:17]}  Nc5 {[%clk 0:00:11]} 33. Nxd6 {[%clk 0:00:15]}  Rd2 {[%clk 0:00:12]} 34. Rd4 {[%clk 0:00:14]}  Rxd4 {[%clk 0:00:07]} 35. exd4 {[%clk 0:00:15]}  Ne6 {[%clk 0:00:07]} 36. Bxe6 {[%clk 0:00:16]}  Bxe6 {[%clk 0:00:07]} 37. Rb1 {[%clk 0:00:16]}  Ra8 {[%clk 0:00:05]} 38. Nxb5 {[%clk 0:00:15]}  Bc4 {[%clk 0:00:05]} 39. Nd6 {[%clk 0:00:14]}  Bd5 {[%clk 0:00:05]} 40. Ra1 {[%clk 0:00:14]}  Ra4 {[%clk 0:00:04]} 41. Nb5 {[%clk 0:00:14]}  Bc6 {[%clk 0:00:05]} 42. Nc3 {[%clk 0:00:13]}  Rxd4 {[%clk 0:00:06]} 43. Rc1 {[%clk 0:00:12]}  Bb7 {[%clk 0:00:05]} 44. f3 {[%clk 0:00:11]}  Rd3 {[%clk 0:00:04]} 45. a4 {[%clk 0:00:10]}  Rd4 {[%clk 0:00:04]} 46. a5 {[%clk 0:00:10]}  Ba6 {[%clk 0:00:05]} 47. Ne4 {[%clk 0:00:09]}  Ra4 {[%clk 0:00:05]} 48. Rc5 {[%clk 0:00:09]}  Ra1+ {[%clk 0:00:05]} 49. Kh2 {[%clk 0:00:09]}  Ra2 {[%clk 0:00:06]} 50. Ng3 {[%clk 0:00:08]}  h5 {[%clk 0:00:06]} 51. h4 {[%clk 0:00:09]}  Bb7 {[%clk 0:00:05]} 52. Nf1 {[%clk 0:00:08]}  Bxf3 {[%clk 0:00:04]} 53. Ne3 {[%clk 0:00:09]}  Bb7 {[%clk 0:00:05]} 54. Kg3 {[%clk 0:00:08]}  Be4 {[%clk 0:00:05]} 55. Kf4 {[%clk 0:00:09]}  Ba8 {[%clk 0:00:05]} 56. g3 {[%clk 0:00:08]}  Ra4+ {[%clk 0:00:05]} 57. Nc4 {[%clk 0:00:04]}  Bb7 {[%clk 0:00:04]} 58. Ke5 {[%clk 0:00:04]}  Ba6 {[%clk 0:00:04]} 59. Nd6 {[%clk 0:00:03]}  Ra3 {[%clk 0:00:05]} 60. Rc7 {[%clk 0:00:04]}  Rxa5+ {[%clk 0:00:05]} 61. Kd4 {[%clk 0:00:04]}  Ra4+ {[%clk 0:00:04]} 62. Kc5 {[%clk 0:00:05]}  Kg8 {[%clk 0:00:04]} 63. Rxf7 {[%clk 0:00:04]}  Ra3 {[%clk 0:00:04]} 64. Rf6 {[%clk 0:00:04]}  Rxg3 {[%clk 0:00:04]} 65. Kd4 {[%clk 0:00:03]}  Kg7 {[%clk 0:00:03]} 66. Ke5 {[%clk 0:00:04]}  Re3+ {[%clk 0:00:02]} 67. Kf4 {[%clk 0:00:04]}  Kxf6 {[%clk 0:00:01]} 68. Kxe3 {[%clk 0:00:04]}  Ke6 {[%clk 0:00:02]} 69. Ne4 {[%clk 0:00:05]}  Kf5 {[%clk 0:00:02]} 70. Nf2 {[%clk 0:00:05]}  Bb5 {[%clk 0:00:02]} 71. Kf3 {[%clk 0:00:06]}  Bc6+ {[%clk 0:00:02]} 72. Kg3 {[%clk 0:00:06]}  Be4 {[%clk 0:00:03]} 73. Nh3 {[%clk 0:00:05]}  Ke5 {[%clk 0:00:02]} 74. Ng5 {[%clk 0:00:06]}  Bf5 {[%clk 0:00:03]} 75. Nh7 {[%clk 0:00:06]}  Ke6 {[%clk 0:00:03]} 76. Ng5+ {[%clk 0:00:07]}  Kf6 {[%clk 0:00:03]} 77. Nf3 {[%clk 0:00:07]}  Be4 {[%clk 0:00:04]} 78. Ng5 {[%clk 0:00:08]}  Kf5 {[%clk 0:00:04]} 79. Nh7 {[%clk 0:00:09]}  Bd5 {[%clk 0:00:04]} 80. Ng5 {[%clk 0:00:09]}  Bc6 {[%clk 0:00:05]} 81. Nh3 {[%clk 0:00:10]}  Bh1 {[%clk 0:00:04]} 82. Ng5 {[%clk 0:00:11]}  Ba8 {[%clk 0:00:05]} 83. Nh7 {[%clk 0:00:10]}  Bb7 {[%clk 0:00:05]} 84. Ng5 {[%clk 0:00:11]}  Ba6 {[%clk 0:00:06]} 85. Nh3 {[%clk 0:00:11]}  Bb5 {[%clk 0:00:06]} 86. Ng5 {[%clk 0:00:12]}  Ba4 {[%clk 0:00:07]} 87. Nh3 {[%clk 0:00:13]}  Bc2 {[%clk 0:00:07]} 88. Ng5 {[%clk 0:00:14]}  Bd3 {[%clk 0:00:07]} 89. Nh7 {[%clk 0:00:14]}  Bc4 {[%clk 0:00:08]} 90. Ng5 {[%clk 0:00:15]}  Bb5 {[%clk 0:00:08]} 91. Nh7 {[%clk 0:00:15]}  Bf1 {[%clk 0:00:09]} 92. Ng5 {[%clk 0:00:16]}  Be2 {[%clk 0:00:09]} 93. Nh7 {[%clk 0:00:14]} 1/2-1/2

[Event "November 21 Late 2023"]
[Site "https://www.chess.com"]
[Date "2023.11.21"]
[Round "6"]
[White "Shimanov, Aleksandr"]
[Black "Skvortsov, Andrei"]
[Result "1/2-1/2"]
[Board "17"]
[TimeControl "180+1"]
[WhiteFideId "4198603"]
[BlackFideId "24108600"]
[WhiteElo "2611"]
[BlackElo "2357"]
[WhiteTeam "RUS"]
[BlackTeam "MNE"]
[WhiteClock "0:00:19"]
[BlackClock "0:00:06"]

1. c4 {[%clk 0:03:00]}  e5 {[%clk 0:02:58]} 2. g3 {[%clk 0:03:00]}  Nf6 {[%clk 0:02:56]} 3. Bg2 {[%clk 0:02:59]}  Bc5 {[%clk 0:02:56]} 4. Nc3 {[%clk 0:02:59]}  O-O {[%clk 0:02:52]} 5. Nf3 {[%clk 0:02:57]}  Nc6 {[%clk 0:02:52]} 6. O-O {[%clk 0:02:56]}  d6 {[%clk 0:02:49]} 7. e3 {[%clk 0:02:54]}  a6 {[%clk 0:02:48]} 8. d4 {[%clk 0:02:53]}  exd4 {[%clk 0:02:48]} 9. exd4 {[%clk 0:02:53]}  Ba7 {[%clk 0:02:48]} 10. h3 {[%clk 0:02:53]}  Re8 {[%clk 0:02:48]} 11. b3 {[%clk 0:02:50]}  Ne7 {[%clk 0:02:43]} 12. Bb2 {[%clk 0:02:47]}  Ng6 {[%clk 0:02:41]} 13. Qc2 {[%clk 0:02:43]}  c6 {[%clk 0:02:40]} 14. Rfe1 {[%clk 0:02:41]}  d5 {[%clk 0:02:36]} 15. Rad1 {[%clk 0:02:37]}  Rxe1+ {[%clk 0:02:35]} 16. Rxe1 {[%clk 0:02:37]}  dxc4 {[%clk 0:02:34]} 17. bxc4 {[%clk 0:02:38]}  Be6 {[%clk 0:02:34]} 18. Bf1 {[%clk 0:02:17]}  Qd7 {[%clk 0:02:28]} 19. Ne5 {[%clk 0:02:04]}  Qxd4 {[%clk 0:02:07]} 20. Ne4 {[%clk 0:02:00]}  Qd8 {[%clk 0:01:30]} 21. Nxf6+ {[%clk 0:02:00]}  Qxf6 {[%clk 0:01:24]} 22. Nxc6 {[%clk 0:02:00]}  Qxf2+ {[%clk 0:01:13]} 23. Qxf2 {[%clk 0:02:01]}  Bxf2+ {[%clk 0:01:13]} 24. Kxf2 {[%clk 0:02:02]}  bxc6 {[%clk 0:01:14]} 25. Rd1 {[%clk 0:01:58]}  Rb8 {[%clk 0:01:08]} 26. Bc3 {[%clk 0:01:58]}  Ne7 {[%clk 0:00:59]} 27. g4 {[%clk 0:01:53]}  h6 {[%clk 0:00:58]} 28. Be5 {[%clk 0:01:51]}  Rb4 {[%clk 0:00:51]} 29. Rd8+ {[%clk 0:01:50]}  Kh7 {[%clk 0:00:52]} 30. Bd3+ {[%clk 0:01:51]}  Ng6 {[%clk 0:00:51]} 31. c5 {[%clk 0:01:12]}  Ra4 {[%clk 0:00:47]} 32. Rd6 {[%clk 0:00:57]}  Rxa2+ {[%clk 0:00:35]} 33. Ke3 {[%clk 0:00:57]}  Ra3 {[%clk 0:00:31]} 34. Kd2 {[%clk 0:00:56]}  Rxd3+ {[%clk 0:00:28]} 35. Kxd3 {[%clk 0:00:57]}  Nxe5+ {[%clk 0:00:28]} 36. Kd4 {[%clk 0:00:57]}  Nf3+ {[%clk 0:00:27]} 37. Ke3 {[%clk 0:00:57]}  Ne5 {[%clk 0:00:18]} 38. Kd4 {[%clk 0:00:55]}  Nf3+ {[%clk 0:00:07]} 39. Ke3 {[%clk 0:00:55]}  Ne5 {[%clk 0:00:07]} 40. Ke4 {[%clk 0:00:56]}  Nd7 {[%clk 0:00:03]} 41. Rxc6 {[%clk 0:00:56]}  Nf6+ {[%clk 0:00:03]} 42. Kd4 {[%clk 0:00:56]}  Kg6 {[%clk 0:00:04]} 43. Rxa6 {[%clk 0:00:56]}  Kg5 {[%clk 0:00:04]} 44. c6 {[%clk 0:00:54]}  Ne8 {[%clk 0:00:04]} 45. Ra7 {[%clk 0:00:52]}  Kh4 {[%clk 0:00:03]} 46. Ke5 {[%clk 0:00:52]}  Kxh3 {[%clk 0:00:03]} 47. Re7 {[%clk 0:00:52]}  Nf6 {[%clk 0:00:02]} 48. c7 {[%clk 0:00:52]}  Nxg4+ {[%clk 0:00:02]} 49. Kf4 {[%clk 0:00:49]}  Bc8 {[%clk 0:00:03]} 50. Re8 {[%clk 0:00:49]}  g5+ {[%clk 0:00:03]} 51. Kf3 {[%clk 0:00:47]}  Bb7+ {[%clk 0:00:03]} 52. Ke2 {[%clk 0:00:47]}  Ba6+ {[%clk 0:00:02]} 53. Kd2 {[%clk 0:00:46]}  Nf6 {[%clk 0:00:03]} 54. Ra8 {[%clk 0:00:43]}  Bb7 {[%clk 0:00:03]} 55. Rb8 {[%clk 0:00:44]}  Ba6 {[%clk 0:00:03]} 56. Rb6 {[%clk 0:00:44]}  Nd5 {[%clk 0:00:03]} 57. Rxa6 {[%clk 0:00:41]}  Nxc7 {[%clk 0:00:03]} 58. Rxh6+ {[%clk 0:00:42]}  Kg4 {[%clk 0:00:03]} 59. Rf6 {[%clk 0:00:42]}  Nd5 {[%clk 0:00:04]} 60. Rxf7 {[%clk 0:00:43]}  Nf4 {[%clk 0:00:05]} 61. Ke3 {[%clk 0:00:43]}  Ng6 {[%clk 0:00:05]} 62. Ke4 {[%clk 0:00:43]}  Nf4 {[%clk 0:00:06]} 63. Ra7 {[%clk 0:00:42]}  Nh5 {[%clk 0:00:06]} 64. Ra1 {[%clk 0:00:43]}  Ng3+ {[%clk 0:00:05]} 65. Ke3 {[%clk 0:00:44]}  Nf5+ {[%clk 0:00:06]} 66. Kf2 {[%clk 0:00:44]}  Nh4 {[%clk 0:00:04]} 67. Ra4+ {[%clk 0:00:45]}  Kf5 {[%clk 0:00:05]} 68. Kg3 {[%clk 0:00:45]}  Ng6 {[%clk 0:00:05]} 69. Ra5+ {[%clk 0:00:45]}  Ne5 {[%clk 0:00:06]} 70. Rb5 {[%clk 0:00:45]}  Kf6 {[%clk 0:00:07]} 71. Kf2 {[%clk 0:00:41]}  Ng4+ {[%clk 0:00:05]} 72. Kf3 {[%clk 0:00:40]}  Ne5+ {[%clk 0:00:05]} 73. Ke4 {[%clk 0:00:41]}  Nf7 {[%clk 0:00:05]} 74. Rb6+ {[%clk 0:00:41]}  Ke7 {[%clk 0:00:05]} 75. Kf5 {[%clk 0:00:41]}  Nd6+ {[%clk 0:00:05]} 76. Kxg5 {[%clk 0:00:39]}  Ke6 {[%clk 0:00:05]} 77. Ra6 {[%clk 0:00:38]}  Ke5 {[%clk 0:00:06]} 78. Ra5+ {[%clk 0:00:37]}  Ke4 {[%clk 0:00:06]} 79. Ra6 {[%clk 0:00:33]}  Nc4 {[%clk 0:00:06]} 80. Re6+ {[%clk 0:00:32]}  Kd5 {[%clk 0:00:07]} 81. Kf6 {[%clk 0:00:32]}  Nd6 {[%clk 0:00:06]} 82. Re1 {[%clk 0:00:32]}  Ne4+ {[%clk 0:00:06]} 83. Kf5 {[%clk 0:00:32]}  Nc3 {[%clk 0:00:06]} 84. Rh1 {[%clk 0:00:30]}  Nb5 {[%clk 0:00:07]} 85. Rd1+ {[%clk 0:00:30]}  Nd4+ {[%clk 0:00:05]} 86. Kf4 {[%clk 0:00:30]}  Kc4 {[%clk 0:00:05]} 87. Ke4 {[%clk 0:00:31]}  Nb3 {[%clk 0:00:06]} 88. Rh1 {[%clk 0:00:29]}  Nc5+ {[%clk 0:00:06]} 89. Ke3 {[%clk 0:00:29]}  Kd5 {[%clk 0:00:07]} 90. Rh5+ {[%clk 0:00:29]}  Kc4 {[%clk 0:00:07]} 91. Rg5 {[%clk 0:00:29]}  Nb3 {[%clk 0:00:07]} 92. Rg4+ {[%clk 0:00:28]}  Kd5 {[%clk 0:00:07]} 93. Kd3 {[%clk 0:00:27]}  Nc5+ {[%clk 0:00:07]} 94. Ke3 {[%clk 0:00:28]}  Nb3 {[%clk 0:00:08]} 95. Rb4 {[%clk 0:00:27]}  Nc5 {[%clk 0:00:08]} 96. Kd2 {[%clk 0:00:27]}  Ne4+ {[%clk 0:00:07]} 97. Kd3 {[%clk 0:00:26]}  Nc5+ {[%clk 0:00:08]} 98. Ke3 {[%clk 0:00:27]}  Na6 {[%clk 0:00:07]} 99. Rd4+ {[%clk 0:00:26]}  Ke5 {[%clk 0:00:06]} 100. Rh4 {[%clk 0:00:24]}  Nc5 {[%clk 0:00:06]} 101. Rh5+ {[%clk 0:00:24]}  Kd6 {[%clk 0:00:06]} 102. Kd4 {[%clk 0:00:25]}  Ne6+ {[%clk 0:00:07]} 103. Kc4 {[%clk 0:00:26]}  Ke7 {[%clk 0:00:07]} 104. Rf5 {[%clk 0:00:25]}  Kd6 {[%clk 0:00:07]} 105. Rf1 {[%clk 0:00:25]}  Ke5 {[%clk 0:00:08]} 106. Re1+ {[%clk 0:00:24]}  Kd6 {[%clk 0:00:08]} 107. Rd1+ {[%clk 0:00:24]}  Ke5 {[%clk 0:00:08]} 108. Rf1 {[%clk 0:00:23]}  Kd6 {[%clk 0:00:08]} 109. Rf5 {[%clk 0:00:22]}  Ng7 {[%clk 0:00:07]} 110. Rd5+ {[%clk 0:00:20]}  Ke6 {[%clk 0:00:07]} 111. Rg5 {[%clk 0:00:20]}  Kf6 {[%clk 0:00:06]} 112. Rg1 {[%clk 0:00:19]}  Ne6 {[%clk 0:00:06]} 113. Kd5 {[%clk 0:00:20]}  Nf4+ {[%clk 0:00:07]} 114. Ke4 {[%clk 0:00:18]}  Ng6 {[%clk 0:00:06]} 115. Rxg6+ {[%clk 0:00:19]}  Kxg6 {[%clk 0:00:06]} 1/2-1/2

[Event "November 21 Late 2023"]
[Site "https://www.chess.com"]
[Date "2023.11.21"]
[Round "6"]
[White "Olsen, Filip Boe"]
[Black "Sjugirov, Sanan"]
[Result "0-1"]
[Board "21"]
[TimeControl "180+1"]
[WhiteFideId "1440640"]
[BlackFideId "4189302"]
[WhiteElo "2322"]
[BlackElo "2569"]
[WhiteTeam "DEN"]
[BlackTeam "HUN"]
[WhiteClock "0:00:30"]
[BlackClock "0:00:28"]

1. Nf3 {[%clk 0:03:00]}  d5 {[%clk 0:02:59]} 2. g3 {[%clk 0:03:00]}  Bg4 {[%clk 0:02:59]} 3. Bg2 {[%clk 0:03:00]}  Nd7 {[%clk 0:02:59]} 4. h3 {[%clk 0:03:01]}  Bh5 {[%clk 0:02:57]} 5. O-O {[%clk 0:03:00]}  c6 {[%clk 0:02:56]} 6. c4 {[%clk 0:03:00]}  e6 {[%clk 0:02:56]} 7. cxd5 {[%clk 0:02:59]}  exd5 {[%clk 0:02:56]} 8. d4 {[%clk 0:03:00]}  Bd6 {[%clk 0:02:53]} 9. Qb3 {[%clk 0:02:58]}  Qb6 {[%clk 0:02:52]} 10. Qe3+ {[%clk 0:02:58]}  Ne7 {[%clk 0:02:51]} 11. Nc3 {[%clk 0:02:56]}  O-O {[%clk 0:02:51]} 12. Nh4 {[%clk 0:02:43]}  Rae8 {[%clk 0:02:46]} 13. Qd3 {[%clk 0:02:40]}  f5 {[%clk 0:02:35]} 14. Bf4 {[%clk 0:02:33]}  Bxf4 {[%clk 0:02:29]} 15. gxf4 {[%clk 0:02:33]}  Nf6 {[%clk 0:02:19]} 16. Nf3 {[%clk 0:02:31]}  Bxf3 {[%clk 0:02:14]} 17. Bxf3 {[%clk 0:02:28]}  Ne4 {[%clk 0:02:13]} 18. Rab1 {[%clk 0:02:21]}  Ng6 {[%clk 0:02:09]} 19. e3 {[%clk 0:02:16]}  Nh4 {[%clk 0:02:09]} 20. Bh5 {[%clk 0:02:13]}  Re6 {[%clk 0:02:06]} 21. Kh2 {[%clk 0:02:01]}  Rh6 {[%clk 0:02:05]} 22. Be2 {[%clk 0:02:00]}  Rg6 {[%clk 0:02:01]} 23. Nxe4 {[%clk 0:01:27]}  fxe4 {[%clk 0:02:00]} 24. Qd1 {[%clk 0:01:25]}  Rg2+ {[%clk 0:01:57]} 25. Kh1 {[%clk 0:01:25]}  Rf6 {[%clk 0:00:49]} 26. Rg1 {[%clk 0:01:15]}  Rxg1+ {[%clk 0:00:49]} 27. Qxg1 {[%clk 0:01:08]}  Rg6 {[%clk 0:00:50]} 28. Qe1 {[%clk 0:01:06]}  c5 {[%clk 0:00:35]} 29. dxc5 {[%clk 0:00:56]}  Qe6 {[%clk 0:00:35]} 30. Bg4 {[%clk 0:00:46]}  Rxg4 {[%clk 0:00:32]} 31. hxg4 {[%clk 0:00:47]}  Qxg4 {[%clk 0:00:33]} 32. Qf1 {[%clk 0:00:30]}  Nf3 {[%clk 0:00:28]} 0-1